fUST/lending_fUST_20240901
["ID","MTS","AMOUNT","RATE_DAILY","PERIOD"]
[336776086,1725138645835,-500.0,0.00032876,31]
[336776087,1725138645844,-500.0,0.00032876,31]
[336776088,1725138645854,-500.0,0.00032876,31]
[336776089,1725138645864,-500.0,0.00032876,31]
[336776090,1725138645875,-489.15234295,0.00032876,31]
[336776091,1725138645886,-500.0,0.00032876,31]
[336776092,1725138645896,-430.54722159,0.00032876,31]
[336776093,1725138645907,-500.0,0.00032876,31]
[336776094,1725138645918,-500.0,0.00032876,31]
[336776095,1725138645928,-500.0,0.00032876,31]
[336776096,1725138645937,-500.0,0.00032876,31]
[336776097,1725138645948,-500.0,0.00032876,31]
[336776098,1725138645957,-500.0,0.00032876,31]
[336776099,1725138645966,-500.0,0.00032876,31]
[336776100,1725138645976,-500.0,0.00032876,31]
[336776101,1725138645985,-500.0,0.00032876,31]
[336776102,1725138645994,-500.0,0.00032876,31]
[336776103,1725138646004,-500.0,0.00032876,31]
[336776104,1725138646014,-500.0,0.00032876,31]
[336776105,1725138646024,-500.0,0.00032876,31]
[336776106,1725138646035,-500.0,0.00032876,31]
[336776107,1725138646045,-500.0,0.00032876,31]
[336776108,1725138646054,-500.0,0.00032876,31]
[336776109,1725138646063,-500.0,0.00032876,31]
[336776110,1725138646073,-500.0,0.00032876,31]
[336776111,1725138646082,-500.0,0.00032876,31]
[336776112,1725138646091,-500.0,0.00032876,31]
[336776113,1725138646101,-497.0,0.00032876,31]
[336776115,1725138646109,-500.0,0.00032876,31]
[336776116,1725138646119,-500.0,0.00032876,31]
[336776117,1725138646128,-446.48082854,0.00032876,31]
[336776118,1725138646137,-500.0,0.00032876,31]
[336776119,1725138646146,-500.0,0.00032876,31]
[336776120,1725138646156,-501.32164761,0.00032876,31]
[336776121,1725138646165,-500.0,0.00032876,31]
[336776122,1725138646174,-500.0,0.00032876,31]
[336776123,1725138646183,-500.0,0.00032876,31]
[336776124,1725138646193,-500.0,0.00032876,31]
[336776125,1725138646202,-500.0,0.00032876,31]
[336776126,1725138646211,-500.0,0.00032876,31]
[336776127,1725138646220,-500.0,0.00032876,31]
[336776128,1725138646230,-500.0,0.00032876,31]
[336776129,1725138646239,-500.0,0.00032876,31]
[336776130,1725138646257,-500.0,0.00032876,31]
[336776131,1725138646266,-500.0,0.00032876,31]
[336776132,1725138646275,-500.0,0.00032876,31]
[336776133,1725138646285,-500.0,0.00032876,31]
[336776134,1725138646294,-500.0,0.00032876,31]
[336776135,1725138646303,-258.1038107,0.00032876,31]
[336776136,1725138646313,-500.0,0.00032876,31]
[336776137,1725138646322,-500.0,0.00032876,31]
[336776138,1725138646333,-502.04550254,0.00032876,31]
[336776139,1725138646344,-500.0,0.00032876,31]
[336776140,1725138646353,-500.0,0.00032876,31]
[336776141,1725138646362,-500.0,0.00032876,31]
[336776142,1725138646371,-500.0,0.00032876,31]
[336776143,1725138646380,-500.0,0.00032876,31]
[336776144,1725138646390,-500.0,0.00032876,31]
[336776145,1725138646400,-500.0,0.00032876,31]
[336776146,1725138646409,-500.0,0.00032876,31]
[336776147,1725138646419,-500.0,0.00032876,31]
[336776148,1725138646428,-500.0,0.00032876,31]
[336776149,1725138646438,-500.0,0.00032876,31]
[336776150,1725138646448,-500.0,0.00032876,31]
[336776151,1725138646458,-500.0,0.00032876,31]
[336776152,1725138646467,-416.89278119,0.00032876,31]
[336776153,1725138646477,-500.0,0.00032876,7]
[336776154,1725138646486,-500.0,0.00032876,7]
[336776155,1725138646497,-500.0,0.00032876,7]
[336776156,1725138646506,-500.0,0.00032876,7]
[336776157,1725138646516,-500.0,0.00032876,31]
[336776158,1725138646526,-500.0,0.00032876,31]
[336776159,1725138646537,-500.0,0.00032876,31]
[336776160,1725138646546,-500.0,0.00032876,31]
[336776161,1725138646556,-500.0,0.00032876,31]
[336776162,1725138646565,-500.0,0.00032876,31]
[336776163,1725138646574,-500.0,0.00032876,31]
[336776164,1725138646583,-500.0,0.00032876,31]
[336776165,1725138646592,-500.0,0.00032876,31]
[336776166,1725138646603,-500.0,0.00032876,31]
[336776167,1725138646611,-500.0,0.00032876,31]
[336776168,1725138646621,-500.0,0.00032876,31]
[336776169,1725138646630,-500.0,0.00032876,31]
[336776170,1725138646638,-500.0,0.00032876,31]
[336776171,1725138646647,-500.0,0.00032876,31]
[336776172,1725138646657,-500.0,0.00032876,31]
[336776173,1725138646666,-500.0,0.00032876,31]
[336776174,1725138646677,-500.0,0.00032876,31]
[336776175,1725138646686,-500.0,0.00032876,31]
[336776176,1725138646694,-500.0,0.00032876,31]
[336776177,1725138646704,-500.0,0.00032876,31]
[336776178,1725138646713,-500.0,0.00032876,31]
[336776179,1725138646723,-500.0,0.00032876,31]
[336776180,1725138646733,-500.0,0.00032876,31]
[336776181,1725138646745,-500.0,0.00032876,31]
[336776182,1725138646754,-500.0,0.00032876,31]
[336776183,1725138646763,-500.0,0.00032876,31]
[336776184,1725138646772,-500.0,0.00032876,31]
[336776185,1725138646782,-500.0,0.00032876,31]
[336776186,1725138646887,-373.80111737,0.00032876,31]
[336776187,1725138646897,-261.75527267,0.00032876,31]
[336776188,1725138646907,-831.86,0.00032876,31]
[336776189,1725138646917,-831.86,0.00032876,31]
[336776190,1725138646928,-831.86,0.00032876,31]
[336776191,1725138646937,-500.0,0.00032876,31]
[336776192,1725138646948,-831.86,0.00032876,31]
[336776193,1725138646958,-500.0,0.00032876,31]
[336776194,1725138646970,-406.59635963,0.00032876,31]
[336776195,1725138646982,-500.0,0.00032876,31]
[336776196,1725138646992,-500.0,0.00032876,31]
[336776197,1725138647003,-500.0,0.00032876,31]
[336776198,1725138647012,-500.0,0.00032876,31]
[336776199,1725138647022,-318.45377588,0.00032876,31]
[336776200,1725138647030,-500.0,0.00032876,31]
[336776201,1725138647039,-500.0,0.00032876,31]
[336776202,1725138647049,-500.0,0.00032876,31]
[336776203,1725138647057,-500.0,0.00032876,31]
[336776204,1725138647066,-501.56254941,0.00032876,31]
[336776205,1725138647075,-500.0,0.00032876,31]
[336776206,1725138647084,-206.64923251,0.00032876,31]
[336776207,1725138647093,-501.54095349,0.00032876,31]
[336776208,1725138647103,-500.0,0.00032876,31]
[336776209,1725138647112,-214.56284989,0.00032876,31]
[336776210,1725138647121,-500.0,0.00032876,31]
[336776211,1725138647130,-500.0,0.00032876,31]
[336776212,1725138647139,-527.64269415,0.00032876,31]
[336776213,1725138647148,-500.0,0.00032876,31]
[336776214,1725138647157,-500.0,0.00032876,31]
[336776215,1725138647166,-500.0,0.00032876,31]
[336776216,1725138647175,-386.25283304,0.00032876,31]
[336776217,1725138647184,-500.0,0.00032876,31]
[336776218,1725138647194,-500.0,0.00032876,31]
[336776219,1725138647203,-502.54978621,0.00032876,31]
[336776220,1725138647214,-500.0,0.00032876,31]
[336776221,1725138647225,-500.0,0.00032876,31]
[336776222,1725138647235,-500.0,0.00032876,31]
[336776223,1725138647250,-500.0,0.00032876,31]
[336776224,1725138647260,-500.0,0.00032876,31]
[336776225,1725138647269,-500.0,0.00032876,31]
[336776226,1725138647279,-500.0,0.00032876,31]
[336776227,1725138647289,-500.0,0.00032876,31]
[336776228,1725138647298,-500.0,0.00032876,31]
[336776229,1725138647308,-500.0,0.00032876,31]
[336776230,1725138647319,-500.0,0.00032876,31]
[336776231,1725138647329,-500.0,0.00032876,31]
[336776232,1725138647338,-500.0,0.00032876,31]
[336776233,1725138647347,-500.0,0.00032876,31]
[336776234,1725138647356,-500.0,0.00032876,31]
[336776235,1725138647365,-500.0,0.00032876,31]
[336776236,1725138647375,-500.0,0.00032876,31]
[336776237,1725138647384,-278.62851592,0.00032876,31]
[336776238,1725138647394,-500.0,0.00032876,31]
[336776239,1725138647403,-500.0,0.00032876,31]
[336776240,1725138647412,-527.94596193,0.00032876,31]
[336776241,1725138647421,-743.86,0.00032876,31]
[336776242,1725138647431,-743.86,0.00032876,31]
[336776243,1725138647442,-743.86,0.00032876,31]
[336776244,1725138647455,-743.86,0.00032876,31]
[336776245,1725138647464,-743.86,0.00032876,31]
[336776246,1725138647475,-743.86,0.00032876,31]
[336776247,1725138647486,-743.86,0.00032876,31]
[336776248,1725138647496,-743.86,0.00032876,31]
[336776249,1725138647505,-743.86,0.00032876,31]
[336776250,1725138647515,-743.86,0.00032876,31]
[336776251,1725138647524,-516.74050358,0.00032876,31]
[336776252,1725138647533,-500.0,0.00032876,31]
[336776253,1725138647543,-743.86,0.00032876,31]
[336776254,1725138647552,-502.70363859,0.00032876,31]
[336776255,1725138647560,-743.86,0.00032876,31]
[336776256,1725138647569,-502.86614356,0.00032876,31]
[336776257,1725138647579,-743.86,0.00032876,31]
[336776258,1725138647588,-743.86,0.00032876,31]
[336776259,1725138647597,-743.86,0.00032876,31]
[336776260,1725138647606,-743.86,0.00032876,31]
[336776261,1725138647615,-500.0,0.00032876,31]
[336776262,1725138647624,-743.86,0.00032876,31]
[336776263,1725138647633,-500.0,0.00032876,31]
[336776264,1725138647643,-743.86,0.00032876,31]
[336776265,1725138647653,-743.86,0.00032876,31]
[336776266,1725138647661,-500.0,0.00032876,31]
[336776267,1725138647670,-743.86,0.00032876,31]
[336776268,1725138647679,-500.0,0.00032876,31]
[336776269,1725138647688,-500.0,0.00032876,31]
[336776270,1725138647697,-500.0,0.00032876,31]
[336776271,1725138647707,-500.0,0.00032876,31]
[336776272,1725138647715,-743.86,0.00032876,31]
[336776273,1725138647724,-500.0,0.00032876,31]
[336776274,1725138647734,-500.0,0.00032876,31]
[336776275,1725138647743,-743.86,0.00032876,31]
[336776276,1725138647753,-500.0,0.00032876,31]
[336776277,1725138647762,-743.86,0.00032876,31]
[336776278,1725138647772,-500.0,0.00032876,31]
[336776279,1725138647781,-500.0,0.00032876,31]
[336776280,1725138647791,-743.8822787,0.00032876,31]
[336776281,1725138647800,-500.0,0.00032876,31]
[336776282,1725138647809,-500.0,0.00032876,31]
[336776283,1725138647818,-500.0,0.00032876,31]
[336776284,1725138647829,-500.0,0.00032876,31]
[336776285,1725138647840,-500.0,0.00032876,31]
[336776286,1725138647851,-500.0,0.00032876,31]
[336776287,1725138647860,-500.0,0.00032876,31]
[336776288,1725138647870,-500.0,0.00032876,31]
[336776289,1725138647879,-500.0,0.00032876,31]
[336776290,1725138647888,-500.0,0.00032876,31]
[336776291,1725138647897,-500.0,0.00032876,31]
[336776292,1725138647906,-500.0,0.00032876,31]
[336776293,1725138647916,-500.0,0.00032876,31]
[336776294,1725138647925,-500.0,0.00032876,31]
[336776295,1725138647937,-500.0,0.00032876,31]
[336776296,1725138647947,-500.0,0.00032876,31]
[336776297,1725138647957,-500.0,0.00032876,31]
[336776298,1725138647966,-500.0,0.00032876,31]
[336776299,1725138647975,-500.0,0.00032876,31]
[336776300,1725138647984,-500.0,0.00032876,31]
[336776301,1725138647993,-500.0,0.00032876,31]
[336776302,1725138648003,-500.0,0.00032876,31]
[336776303,1725138648012,-500.0,0.00032876,31]
[336776304,1725138648022,-500.0,0.00032876,31]
[336776305,1725138648031,-500.0,0.00032876,31]
[336776306,1725138648041,-500.0,0.00032876,31]
[336776307,1725138648050,-500.0,0.00032876,31]
[336776308,1725138648059,-255.88043075,0.00032876,31]
[336776309,1725138648068,-500.0,0.00032876,31]
[336776310,1725138648077,-500.0,0.00032876,31]
[336776311,1725138648086,-500.0,0.00032876,31]
[336776312,1725138648095,-500.0,0.00032876,31]
[336776313,1725138648105,-500.0,0.00032876,31]
[336776314,1725138648114,-503.24978611,0.00032876,31]
[336776315,1725138648123,-500.0,0.00032876,31]
[336776316,1725138648132,-500.0,0.00032876,31]
[336776317,1725138648141,-500.0,0.00032876,31]
[336776318,1725138648150,-500.0,0.00032876,31]
[336776319,1725138648159,-500.0,0.00032876,31]
[336776320,1725138648169,-575.42104527,0.00032876,31]
[336776321,1725138648178,-500.0,0.00032876,31]
[336776322,1725138648187,-500.0,0.00032876,31]
[336776323,1725138648197,-500.0,0.00032876,31]
[336776324,1725138648207,-454.42371613,0.00032876,31]
[336776325,1725138648217,-500.0,0.00032876,31]
[336776326,1725138648228,-500.0,0.00032876,31]
[336776327,1725138648240,-500.0,0.00032876,31]
[336776328,1725138648253,-500.0,0.00032876,31]
[336776329,1725138648263,-500.0,0.00032876,31]
[336776330,1725138648272,-500.0,0.00032876,31]
[336776331,1725138648281,-500.0,0.00032876,31]
[336776332,1725138648290,-500.0,0.00032876,31]
[336776333,1725138648299,-500.0,0.00032876,31]
[336776334,1725138648308,-500.0,0.00032876,31]
[336776335,1725138648319,-500.0,0.00032876,31]
[336776336,1725138648328,-500.0,0.00032876,31]
[336776337,1725138648340,-500.0,0.00032876,31]
[336776338,1725138648431,-500.0,0.00032876,31]
[336776339,1725138648440,-500.0,0.00032876,31]
[336776340,1725138648451,-500.0,0.00032876,31]
[336776341,1725138648460,-500.0,0.00032876,31]
[336776342,1725138648470,-500.0,0.00032876,31]
[336776343,1725138648481,-500.0,0.00032876,31]
[336776344,1725138648490,-500.0,0.00032876,31]
[336776345,1725138648501,-500.0,0.00032876,31]
[336776346,1725138648510,-500.0,0.00032876,31]
[336776347,1725138648520,-416.74172737,0.00032876,31]
[336776348,1725138648529,-500.0,0.00032876,31]
[336776349,1725138648538,-500.0,0.00032876,31]
[336776350,1725138648547,-208.54903879,0.00032876,31]
[336776351,1725138648557,-500.0,0.00032876,31]
[336776352,1725138648566,-500.0,0.00032876,31]
[336776353,1725138648576,-500.0,0.00032876,31]
[336776354,1725138648585,-500.0,0.00032876,31]
[336776355,1725138648595,-500.0,0.00032876,31]
[336776356,1725138648605,-500.0,0.00032876,31]
[336776357,1725138648615,-500.0,0.00032876,31]
[336776358,1725138648624,-500.0,0.00032876,31]
[336776359,1725138648633,-500.0,0.00032876,31]
[336776360,1725138648643,-500.0,0.00032876,31]
[336776361,1725138648653,-500.0,0.00032876,31]
[336776362,1725138648663,-500.0,0.00032876,31]
[336776363,1725138648673,-500.0,0.00032876,31]
[336776364,1725138648682,-500.0,0.00032876,31]
[336776365,1725138648691,-500.0,0.00032876,31]
[336776366,1725138648700,-500.0,0.00032876,31]
[336776367,1725138648709,-500.0,0.00032876,31]
[336776368,1725138648718,-500.0,0.00032876,31]
[336776369,1725138648727,-500.0,0.00032876,31]
[336776370,1725138648737,-500.0,0.00032876,31]
[336776371,1725138648747,-500.0,0.00032876,31]
[336776372,1725138648756,-500.0,0.00032876,31]
[336776373,1725138648767,-500.0,0.00032876,31]
[336776374,1725138648778,-500.0,0.00032876,31]
[336776375,1725138648788,-500.0,0.00032876,31]
[336776376,1725138648798,-500.0,0.00032876,31]
[336776377,1725138648807,-500.0,0.00032876,31]
[336776378,1725138648817,-500.0,0.00032876,31]
[336776379,1725138648826,-500.0,0.00032876,31]
[336776380,1725138648836,-500.0,0.00032876,31]
[336776381,1725138648845,-500.0,0.00032876,31]
[336776382,1725138648854,-500.0,0.00032876,31]
[336776383,1725138648865,-500.0,0.00032876,31]
[336776384,1725138648874,-500.0,0.00032876,31]
[336776385,1725138648884,-500.0,0.00032876,31]
[336776386,1725138648894,-500.0,0.00032876,31]
[336776387,1725138648903,-500.0,0.00032876,31]
[336776388,1725138648913,-500.0,0.00032876,31]
[336776389,1725138648923,-500.0,0.00032876,31]
[336776390,1725138648934,-500.0,0.00032876,31]
[336776391,1725138648944,-500.0,0.00032876,31]
[336776392,1725138648955,-567.11783928,0.00032876,31]
[336776393,1725138648964,-225.58470707,0.00032876,31]
[336776394,1725138649417,-274.41529293,0.00032876,31]
[336776395,1725138649428,-113.63887015,0.00032876,31]
[336776396,1725138649449,-2143.9823424,0.00032537,2]
[336776398,1725138740852,179.001808,0.00014247,2]
[336776401,1725139228878,168.944824,0.00014247,2]
[336776403,1725139523106,151.47843484,0.0002,2]
[336776404,1725139625127,-168.944824,0.00029589,2]
[336776405,1725139625150,-37.14301358,0.00029801,2]
[336776406,1725139625336,-300.43449104,0.00029801,2]
[336776407,1725139649157,-579.55978568,0.00029801,2]
[336776408,1725139649179,-400.69003811,0.00030137,60]
[336776409,1725139649202,-347.0,0.00030453,2]
[336776410,1725139649225,-5669.22963849,0.00030454,2]
[336776412,1725139712121,176.312754,0.00014247,2]
[336776433,1725139832453,-982.84000315,0.00030207,2]
[336776523,1725139838521,-22.89864862,0.00030207,2]
[336776531,1725139838626,-777.38660692,0.00030207,2]
[336776582,1725140226861,168.275876,0.00014247,2]
[336776584,1725140454894,151.09209365,0.0002,2]
[336776587,1725140728086,172.096907,0.00014247,2]
[336776589,1725140831142,-250.0,0.00026563,2]
[336776590,1725140831163,-166.666666,0.00027035,2]
[336776591,1725140831191,-166.666666,0.00027739,2]
[336776592,1725140831213,-2002.90781245,0.00028095,11]
[336776598,1725140950144,-12967.59802683,0.00026845,11]
[336776599,1725140950166,-24900.0,0.00026846,2]
[336776600,1725140950187,-469.23008801,0.00028344,2]
[336776601,1725140950207,-469.230088,0.00029141,2]
[336776602,1725140968210,-179.98491,0.00029742,2]
[336776634,1725141032535,-801.45256277,0.00030208,2]
[336776636,1725141032545,-179.98491,0.00030517,2]
[336776638,1725141032554,-172.188926,0.00030521,2]
[336776640,1725141032563,-469.230088,0.00030734,2]
[336776641,1725141032574,-500.0,0.00031211,7]
[336776643,1725141032584,-600.0,0.00031222,64]
[336776646,1725141032595,-600.0,0.00031232,64]
[336776647,1725141032605,-179.98491,0.00031292,2]
[336776649,1725141032617,-500.0,0.00031384,7]
[336776651,1725141032627,-2325.97163205,0.00031437,2]
[336776707,1725141038631,-405.85748006,0.00031437,2]
[336776721,1725141040932,-1542.75597747,0.00031437,2]
[336776722,1725141040945,-469.230088,0.00031531,2]
[336776723,1725141040957,-500.0,0.00031563,7]
[336776724,1725141040969,-500.0,0.00031566,7]
[336776725,1725141040981,-504.69446429,0.00031731,7]
[336776726,1725141040993,-168.275876,0.00031781,2]
[336776727,1725141041006,-225.51349,0.00031781,2]
[336776728,1725141041183,-500.0,0.00031852,7]
[336776729,1725141041193,-9528.94590405,0.00032,30]
[336776730,1725141041204,-151.10377087,0.00032013,2]
[336776731,1725141041214,-504.4510894,0.00032301,2]
[336776732,1725141041226,-469.230088,0.00032328,2]
[336776733,1725141041236,-2509.05520797,0.00032471,2]
[336776734,1725141041246,-500.0,0.00032475,7]
[336776735,1725141041255,-2509.05520796,0.00032479,2]
[336776736,1725141041265,-2509.05520796,0.00032487,2]
[336776737,1725141041275,-2289.864,0.000325,120]
[336776738,1725141041284,-2289.865,0.000325,120]
[336776739,1725141041293,-2289.865,0.000325,120]
[336776740,1725141041303,-1574.80738974,0.000325,120]
[336776741,1725141041318,-715.05761026,0.000325,120]
[336776742,1725141041329,-270.96236376,0.000325,120]
[336776754,1725141046594,-2509.05520796,0.00032494,2]
[336776755,1725141046605,-2018.90263624,0.000325,120]
[336776756,1725141046614,-2509.05520796,0.00032502,2]
[336776757,1725141046624,-2002.21,0.00032561,3]
[336776758,1725141046633,-1668.51,0.00032561,3]
[336776759,1725141046643,-1390.42,0.00032561,3]
[336776760,1725141046652,-261.73,0.00032561,3]
[336776761,1725141046662,-1158.69,0.00032561,3]
[336776762,1725141046671,-6483.79901341,0.0003257,11]
[336776763,1725141046681,-19774.0622373,0.00032571,4]
[336776764,1725141046691,-72964.43748494,0.00032571,11]
[336776765,1725141046700,-39548.1244745,0.00032571,4]
[336776766,1725141046709,-3466.52278806,0.00032592,4]
[336776774,1725141251150,168.275876,0.00014247,2]
[336776778,1725141832504,167.349778,0.00014247,2]
[336776780,1725141838070,151.24538115,0.0002,2]
[336776786,1725142035121,-1089.778581,0.00028801,2]
[336776788,1725142040151,-528.62411444,0.00028801,2]
[336776789,1725142052116,-260.99446694,0.00028801,2]
[336776791,1725142151095,-294.0,0.00028799,2]
[336776792,1725142156290,-6.0,0.00028799,2]
[336776793,1725142156317,-15053.39143732,0.00028801,2]
[336776794,1725142156341,-166.666668,0.00029086,2]
[336776795,1725142156365,-166.666668,0.00029276,2]
[336776796,1725142156387,-166.666668,0.00029465,2]
[336776797,1725142160155,-166.666668,0.00029655,2]
[336776821,1725142231695,-166.666668,0.00029844,2]
[336776822,1725142231705,-300.0,0.00029999,2]
[336776824,1725142231715,-61.011332,0.0003,7]
[336776825,1725142231770,-28.99938522,0.0003,7]
[336776899,1725142237913,-12859.42324337,0.0003,7]
[336776900,1725142237925,-166.666668,0.00030033,2]
[336776901,1725142237936,-174.9797707,0.00030219,2]
[336776902,1725142237947,-166.666668,0.00030223,2]
[336776903,1725142237957,-167.834277,0.00030313,2]
[336776904,1725142237967,-166.666668,0.00030412,2]
[336776905,1725142237979,-214.828558,0.00030521,2]
[336776906,1725142237989,-264.382517,0.00030521,2]
[336776907,1725142238000,-166.666668,0.00030602,2]
[336776908,1725142238010,-214.237815,0.00031781,2]
[336776909,1725142238022,-500.0,0.00031984,7]
[336776910,1725142238033,-151.10377087,0.00032013,2]
[336776911,1725142238044,-500.0,0.00032031,7]
[336776912,1725142238054,-214.828558,0.00032047,2]
[336776913,1725142238065,-359.1432555,0.00032392,2]
[336776915,1725142238075,-1986.20090244,0.000324,2]
[336776916,1725142238085,-500.0,0.00032401,7]
[336776917,1725142238095,-1986.20090241,0.00032423,2]
[336776919,1725142238105,-1986.20090241,0.00032446,2]
[336776920,1725142238114,-1986.20090241,0.00032469,2]
[336776921,1725142238126,-218.11,0.0003249,3]
[336776922,1725142238138,-654.36,0.0003249,3]
[336776923,1725142238147,-853.82,0.0003249,3]
[336776924,1725142238158,-823.27,0.0003249,3]
[336776925,1725142238169,-686.06,0.0003249,3]
[336776926,1725142238178,-19474.695734,0.00032492,4]
[336776927,1725142238188,-19474.695734,0.00032492,4]
[336776928,1725142238198,-1986.20090241,0.00032492,2]
[336776929,1725142238209,-36482.21874247,0.000325,11]
[336776930,1725142238219,-9069.282,0.000325,120]
[336776931,1725142238228,-9069.283,0.000325,120]
[336776932,1725142238238,-9069.283,0.000325,120]
[336776933,1725142238248,-9069.283,0.000325,120]
[336776934,1725142238258,-9069.283,0.000325,120]
[336776935,1725142238268,-19155.5778598,0.00032502,5]
[336776936,1725142238277,-706.14747192,0.00032502,2]
[336776937,1725142238287,-500.0,0.00032513,7]
[336776938,1725142238297,-19474.695734,0.00032572,4]
[336776939,1725142238307,-3241.89950671,0.00032581,11]
[336776940,1725142238317,-58424.0872019,0.00032582,4]
[336776941,1725142238332,-183.66984368,0.00032591,2]
[336776942,1725142238342,-500.0,0.00032591,2]
[336776943,1725142238352,-175.49434204,0.00032591,2]
[336776944,1725142238364,-500.0,0.00032591,2]
[336776945,1725142238374,-500.0,0.00032591,2]
[336776946,1725142238384,-27945.97173871,0.00032592,4]
[336776947,1725142238397,-18420.0,0.00032592,4]
[336776948,1725142238409,-70482.20266529,0.00032592,4]
[336776949,1725142238419,-151.0,0.00032592,7]
[336776950,1725142238428,-151.0,0.00032592,7]
[336776951,1725142238439,-151.0,0.00032592,7]
[336776952,1725142238449,-151.0,0.00032592,7]
[336776953,1725142238458,-151.0,0.00032592,7]
[336776954,1725142238468,-327.246134,0.00032592,7]
[336776955,1725142238478,-330.043583,0.00032592,7]
[336776956,1725142238487,-327.246134,0.00032592,7]
[336776957,1725142238498,-151.0,0.00032592,7]
[336776958,1725142238510,-330.043583,0.00032592,7]
[336776959,1725142238520,-151.0,0.00032592,7]
[336776960,1725142238529,-172.651719,0.00032592,7]
[336776961,1725142238540,-151.0,0.00032592,7]
[336776962,1725142238553,-511.81801946,0.00032602,31]
[336776963,1725142238563,-500.0,0.00032602,31]
[336776964,1725142238573,-500.0,0.00032602,31]
[336776965,1725142238584,-500.0,0.00032602,31]
[336776966,1725142238595,-500.0,0.00032602,31]
[336776967,1725142238605,-500.0,0.00032602,31]
[336776968,1725142238615,-500.0,0.00032602,31]
[336776969,1725142238625,-500.0,0.00032602,31]
[336776970,1725142238635,-500.0,0.00032602,31]
[336776971,1725142238647,-500.0,0.00032602,31]
[336776972,1725142238658,-500.0,0.00032602,31]
[336776973,1725142238668,-500.0,0.00032602,31]
[336776974,1725142238678,-500.0,0.00032602,31]
[336776975,1725142238690,-243.86,0.00032602,31]
[336776976,1725142238700,-500.0,0.00032602,31]
[336776977,1725142238710,-500.0,0.00032602,31]
[336776978,1725142238721,-500.0,0.00032602,31]
[336776979,1725142238731,-500.0,0.00032602,31]
[336776980,1725142238743,-500.0,0.00032602,31]
[336776981,1725142238754,-500.0,0.00032602,31]
[336776982,1725142238764,-500.0,0.00032602,31]
[336776983,1725142238773,-500.0,0.00032602,31]
[336776984,1725142238783,-500.0,0.00032602,31]
[336776985,1725142238793,-500.0,0.00032602,31]
[336776986,1725142238802,-500.0,0.00032602,31]
[336776987,1725142238812,-500.0,0.00032602,31]
[336776988,1725142238821,-500.0,0.00032602,31]
[336776989,1725142238831,-500.0,0.00032602,31]
[336776990,1725142238840,-500.0,0.00032602,31]
[336776991,1725142238849,-500.0,0.00032602,31]
[336776992,1725142238859,-500.0,0.00032602,31]
[336776993,1725142238868,-500.0,0.00032602,31]
[336776994,1725142238878,-500.0,0.00032602,31]
[336776995,1725142238887,-500.0,0.00032602,31]
[336776996,1725142238896,-500.0,0.00032602,31]
[336776997,1725142238905,-500.0,0.00032602,31]
[336776998,1725142238914,-500.0,0.00032602,31]
[336776999,1725142238923,-500.0,0.00032602,31]
[336777000,1725142238932,-500.0,0.00032602,31]
[336777001,1725142238941,-500.0,0.00032602,31]